[Event "*** Titled Tuesday Blitz"]
[Site "Chess.com"]
[Date "2020.05.26"]
[Round "7"]
[White "iLuusions"]
[Black "Gerasimenyuk_Miha"]
[Result "1-0"]
[WhiteElo "2573"]
[BlackElo "2398"]
[TimeControl "180+1"]
[EndTime "11:22:17 PDT"]
[Termination "iLuusions won on time"]

1. d4 {[%clk 0:03:00.9]} 1... d6 {[%clk 0:02:58.5]} 2. Nf3 {[%clk 0:03:00]} 2...
Nf6 {[%clk 0:02:59.4]} 3. c4 {[%clk 0:02:58.9]} 3... Bg4 {[%clk 0:02:57.4]} 4.
Qd3 {[%clk 0:02:52.3]} 4... Bxf3 {[%clk 0:02:57]} 5. Qxf3 {[%clk 0:02:52.1]}
5... c6 {[%clk 0:02:57.6]} 6. Nc3 {[%clk 0:02:52.5]} 6... g6 {[%clk 0:02:57.4]}
7. e4 {[%clk 0:02:22.8]} 7... Nbd7 {[%clk 0:02:51.4]} 8. Bg5 {[%clk 0:02:16.1]}
8... Bg7 {[%clk 0:02:50.1]} 9. Be2 {[%clk 0:02:13.6]} 9... Qb6 {[%clk
0:02:49.5]} 10. O-O-O {[%clk 0:02:11.3]} 10... Qa5 {[%clk 0:02:48.3]} 11. Be3
{[%clk 0:02:08.8]} 11... O-O {[%clk 0:02:43.2]} 12. Kb1 {[%clk 0:02:01.5]} 12...
b5 {[%clk 0:02:37.5]} 13. cxb5 {[%clk 0:01:54.1]} 13... cxb5 {[%clk 0:02:38.4]}
14. Bd3 {[%clk 0:01:31.3]} 14... b4 {[%clk 0:02:35.9]} 15. Ne2 {[%clk
0:01:31.7]} 15... Rac8 {[%clk 0:02:17.9]} 16. Nc1 {[%clk 0:01:28.3]} 16... e5
{[%clk 0:02:07.4]} 17. Nb3 {[%clk 0:01:22.5]} 17... Qa4 {[%clk 0:02:05.6]} 18.
Qe2 {[%clk 0:01:14.1]} 18... a6 {[%clk 0:01:54.2]} 19. d5 {[%clk 0:01:06.5]}
19... Nc5 {[%clk 0:01:53.1]} 20. Bxc5 {[%clk 0:00:46.7]} 20... dxc5 {[%clk
0:01:54]} 21. Bc4 {[%clk 0:00:47.3]} 21... Qd7 {[%clk 0:01:39.2]} 22. Bxa6
{[%clk 0:00:37.8]} 22... Ra8 {[%clk 0:01:39.3]} 23. Bc4 {[%clk 0:00:37.9]} 23...
Qd6 {[%clk 0:01:38.9]} 24. f3 {[%clk 0:00:37.2]} 24... Ra7 {[%clk 0:01:34.8]}
25. Qe3 {[%clk 0:00:29.4]} 25... Nd7 {[%clk 0:01:32.5]} 26. Bb5 {[%clk
0:00:29.3]} 26... Rfa8 {[%clk 0:01:25.4]} 27. Bxd7 {[%clk 0:00:23.5]} 27... Qxd7
{[%clk 0:01:25.5]} 28. Qxc5 {[%clk 0:00:19.8]} 28... Rxa2 {[%clk 0:01:23.5]} 29.
Qc6 {[%clk 0:00:20.2]} 29... Qa7 {[%clk 0:01:19.9]} 30. d6 {[%clk 0:00:19]}
30... Rxb2+ {[%clk 0:00:41.9]} 31. Kxb2 {[%clk 0:00:16.8]} 31... Qa2+ {[%clk
0:00:42.2]} 32. Kc1 {[%clk 0:00:16.5]} 32... Bh6+ {[%clk 0:00:41.8]} 33. Nd2
{[%clk 0:00:10.5]} 33... Qa1+ {[%clk 0:00:39.5]} 34. Kc2 {[%clk 0:00:10.8]}
34... Ra2+ {[%clk 0:00:23.1]} 35. Kb3 {[%clk 0:00:10.9]} 35... Qb2+ {[%clk
0:00:20.3]} 36. Kc4 {[%clk 0:00:11.2]} 36... Qc3+ {[%clk 0:00:17.7]} 37. Kb5
{[%clk 0:00:11.3]} 37... Ra5+ {[%clk 0:00:14.1]} 38. Kxa5 {[%clk 0:00:09.2]}
38... Qxc6 {[%clk 0:00:14.2]} 39. Nb3 {[%clk 0:00:08.9]} 39... Be3 {[%clk
0:00:10.7]} 40. Kxb4 {[%clk 0:00:08.1]} 40... Qb6+ {[%clk 0:00:08.4]} 41. Kc3
{[%clk 0:00:07.7]} 41... Qc6+ {[%clk 0:00:06.6]} 42. Kb2 {[%clk 0:00:08]} 42...
Qd7 {[%clk 0:00:05]} 43. Rd3 {[%clk 0:00:07.1]} 43... Bb6 {[%clk 0:00:04.9]} 44.
Rc1 {[%clk 0:00:06.9]} 44... Kg7 {[%clk 0:00:04.2]} 45. Rd5 {[%clk 0:00:05]}
45... h5 {[%clk 0:00:03.8]} 46. Rc4 {[%clk 0:00:04.4]} 46... h4 {[%clk
0:00:03.7]} 47. h3 {[%clk 0:00:04.7]} 47... g5 {[%clk 0:00:03.7]} 48. Nc5 {[%clk
0:00:04.5]} 48... Qb5+ {[%clk 0:00:02.8]} 49. Kc3 {[%clk 0:00:04.9]} 49... Ba5+
{[%clk 0:00:01.7]} 50. Kd3 {[%clk 0:00:05.1]} 50... Qb1+ {[%clk 0:00:01.9]} 51.
Rc2 {[%clk 0:00:05.5]} 51... Qb5+ {[%clk 0:00:01.5]} 52. Ke3 {[%clk 0:00:05.3]}
52... Qf1 {[%clk 0:00:01.4]} 53. d7 {[%clk 0:00:03.7]} 53... Qe1+ {[%clk
0:00:01.4]} 54. Kd3 {[%clk 0:00:04.2]} 54... Qd1+ {[%clk 0:00:01.3]} 55. Kc4
{[%clk 0:00:04.6]} 55... Qxc2+ {[%clk 0:00:01.2]} 56. Kb5 {[%clk 0:00:05.5]} 1-0

[Event "*** Titled Tuesday Blitz"]
[Site "Chess.com"]
[Date "2020.05.26"]
[Round "7"]
[White "Man-Chuk"]
[Black "mishanick"]
[Result "0-1"]
[WhiteElo "2766"]
[BlackElo "2964"]
[TimeControl "180+1"]
[EndTime "11:22:20 PDT"]
[Termination "mishanick won by resignation"]

1. c4 {[%clk 0:03:00.9]} 1... e5 {[%clk 0:02:59.3]} 2. Nc3 {[%clk 0:03:01.1]}
2... Nf6 {[%clk 0:02:59.8]} 3. Nf3 {[%clk 0:03:00.9]} 3... Nc6 {[%clk
0:03:00.3]} 4. e3 {[%clk 0:03:01.3]} 4... Bb4 {[%clk 0:02:59.7]} 5. Nd5 {[%clk
0:03:01.4]} 5... O-O {[%clk 0:02:55.2]} 6. Be2 {[%clk 0:02:59.4]} 6... d6 {[%clk
0:02:54.2]} 7. a3 {[%clk 0:02:54.5]} 7... Bc5 {[%clk 0:02:53.2]} 8. b4 {[%clk
0:02:54.9]} 8... Bb6 {[%clk 0:02:53.2]} 9. Nxb6 {[%clk 0:02:55.4]} 9... axb6
{[%clk 0:02:53.1]} 10. Bb2 {[%clk 0:02:56.3]} 10... Bg4 {[%clk 0:02:51.3]} 11.
h3 {[%clk 0:02:54.4]} 11... Bh5 {[%clk 0:02:50.8]} 12. d3 {[%clk 0:02:54.6]}
12... Re8 {[%clk 0:02:45.3]} 13. O-O {[%clk 0:02:54.5]} 13... h6 {[%clk
0:02:44.8]} 14. Rc1 {[%clk 0:02:48.5]} 14... Qe7 {[%clk 0:02:43]} 15. Re1 {[%clk
0:02:13.8]} 15... Bg6 {[%clk 0:02:39.7]} 16. d4 {[%clk 0:02:01.3]} 16... Rad8
{[%clk 0:02:36.6]} 17. d5 {[%clk 0:01:52.8]} 17... Nb8 {[%clk 0:02:36.3]} 18.
Nd2 {[%clk 0:01:49.3]} 18... Nbd7 {[%clk 0:02:34.4]} 19. f3 {[%clk 0:01:49.5]}
19... Nh5 {[%clk 0:02:32.5]} 20. Nf1 {[%clk 0:01:43.7]} 20... f5 {[%clk
0:02:30.6]} 21. f4 {[%clk 0:01:22]} 21... Nhf6 {[%clk 0:02:28.4]} 22. Bd3 {[%clk
0:01:22.2]} 22... Ne4 {[%clk 0:02:22.2]} 23. Bxe4 {[%clk 0:01:13.3]} 23... fxe4
{[%clk 0:02:21.5]} 24. Qg4 {[%clk 0:01:13.5]} 24... Bh7 {[%clk 0:02:17.3]} 25.
Qg3 {[%clk 0:01:09.4]} 25... Qf7 {[%clk 0:01:58.5]} 26. fxe5 {[%clk 0:01:09.4]}
26... Nxe5 {[%clk 0:01:58.2]} 27. Bxe5 {[%clk 0:01:08.1]} 27... Rxe5 {[%clk
0:01:59.1]} 28. Nh2 {[%clk 0:00:59.4]} 28... Rg5 {[%clk 0:01:56.2]} 29. Qf2
{[%clk 0:00:52.7]} 29... Rf5 {[%clk 0:01:53.7]} 30. Qh4 {[%clk 0:00:36.3]} 30...
Rf8 {[%clk 0:01:33.4]} 31. Rf1 {[%clk 0:00:36.2]} 31... Qd7 {[%clk 0:01:33.1]}
32. Rxf5 {[%clk 0:00:35.8]} 32... Bxf5 {[%clk 0:01:33.5]} 33. Rf1 {[%clk
0:00:31]} 33... Bg6 {[%clk 0:01:25.6]} 34. Rxf8+ {[%clk 0:00:29.8]} 34... Kxf8
{[%clk 0:01:26.5]} 35. Qf4+ {[%clk 0:00:28.1]} 35... Kg8 {[%clk 0:01:26.3]} 36.
Qg4 {[%clk 0:00:11.4]} 36... Bf5 {[%clk 0:01:26.3]} 37. Qf4 {[%clk 0:00:11.9]}
37... Kh7 {[%clk 0:01:26.1]} 38. Nf1 {[%clk 0:00:11.9]} 38... Bg6 {[%clk
0:01:26.2]} 39. Qf8 {[%clk 0:00:08.2]} 39... Qa4 {[%clk 0:01:24]} 40. Qe7 {[%clk
0:00:08]} 40... Qxa3 {[%clk 0:01:23.6]} 41. Qxc7 {[%clk 0:00:08.3]} 41... Qxb4
{[%clk 0:01:23.8]} 42. Qxb7 {[%clk 0:00:04.3]} 42... Qxc4 {[%clk 0:01:21.4]} 43.
Qxb6 {[%clk 0:00:04.2]} 43... Qxd5 {[%clk 0:01:22]} 44. Qd4 {[%clk 0:00:04.7]}
44... Qe6 {[%clk 0:01:18.5]} 45. Ng3 {[%clk 0:00:04.3]} 45... Bf7 {[%clk
0:01:09.2]} 46. Ne2 {[%clk 0:00:04.8]} 46... g5 {[%clk 0:01:09.5]} 47. Kh2
{[%clk 0:00:04.4]} 47... d5 {[%clk 0:01:09.1]} 48. Nc3 {[%clk 0:00:04.1]} 48...
Qd6+ {[%clk 0:01:08]} 49. Kg1 {[%clk 0:00:04.6]} 49... Qc6 {[%clk 0:01:02.4]}
50. Ne2 {[%clk 0:00:04.7]} 50... Kg6 {[%clk 0:01:00.6]} 51. Qe5 {[%clk
0:00:03.4]} 51... Qc5 {[%clk 0:00:57.3]} 52. Nd4 {[%clk 0:00:03.6]} 52... Qc1+
{[%clk 0:00:56.6]} 53. Kh2 {[%clk 0:00:03.9]} 53... Qxe3 {[%clk 0:00:40.3]} 54.
Qf5+ {[%clk 0:00:04.3]} 54... Kg7 {[%clk 0:00:40.7]} 55. Qe5+ {[%clk 0:00:04.8]}
55... Kg8 {[%clk 0:00:39.8]} 56. Qb8+ {[%clk 0:00:02.9]} 56... Kh7 {[%clk
0:00:39.3]} 57. Qa7 {[%clk 0:00:03.6]} 57... Qf4+ {[%clk 0:00:38.9]} 58. Kh1
{[%clk 0:00:03.4]} 58... e3 {[%clk 0:00:37]} 59. Ne2 {[%clk 0:00:02.8]} 59...
Qf2 {[%clk 0:00:34]} 60. Qe7 {[%clk 0:00:02.4]} 60... Kg8 {[%clk 0:00:31.2]} 61.
Qd8+ {[%clk 0:00:02.6]} 61... Kg7 {[%clk 0:00:31.6]} 62. Nd4 {[%clk 0:00:02.4]}
62... Qf1+ {[%clk 0:00:28.1]} 0-1

[Event "*** Titled Tuesday Blitz"]
[Site "Chess.com"]
[Date "2020.05.26"]
[Round "7"]
[White "bascheyaro"]
[Black "Fandorine"]
[Result "0-1"]
[WhiteElo "2694"]
[BlackElo "2897"]
[TimeControl "180+1"]
[EndTime "11:22:22 PDT"]
[Termination "Fandorine won by resignation"]

1. d4 {[%clk 0:02:55.6]} 1... Nf6 {[%clk 0:03:00.4]} 2. c4 {[%clk 0:02:55.8]}
2... g6 {[%clk 0:03:00.6]} 3. Nf3 {[%clk 0:02:56.3]} 3... Bg7 {[%clk 0:03:00.6]}
4. g3 {[%clk 0:02:55.5]} 4... O-O {[%clk 0:03:01.2]} 5. Bg2 {[%clk 0:02:56]}
5... d6 {[%clk 0:03:01.8]} 6. O-O {[%clk 0:02:56.1]} 6... Nc6 {[%clk 0:03:02.4]}
7. b3 {[%clk 0:02:53.4]} 7... a6 {[%clk 0:02:56.4]} 8. Bb2 {[%clk 0:02:52.1]}
8... Rb8 {[%clk 0:02:54.8]} 9. a4 {[%clk 0:02:45.5]} 9... Bd7 {[%clk 0:02:40.2]}
10. Nc3 {[%clk 0:02:44.2]} 10... Re8 {[%clk 0:02:31.3]} 11. e3 {[%clk
0:02:42.9]} 11... h6 {[%clk 0:02:20]} 12. d5 {[%clk 0:02:38.8]} 12... Na5 {[%clk
0:02:17.5]} 13. Nd2 {[%clk 0:02:36.7]} 13... c5 {[%clk 0:02:17.6]} 14. e4 {[%clk
0:02:33.7]} 14... e5 {[%clk 0:02:10.3]} 15. dxe6 {[%clk 0:02:33.1]} 15... Bxe6
{[%clk 0:02:08.1]} 16. Qc2 {[%clk 0:02:32.2]} 16... Nc6 {[%clk 0:02:07.3]} 17.
Ne2 {[%clk 0:02:29.2]} 17... Nb4 {[%clk 0:01:58.5]} 18. Qb1 {[%clk 0:02:29]}
18... Ng4 {[%clk 0:01:50.9]} 19. Bxg7 {[%clk 0:02:18.2]} 19... Kxg7 {[%clk
0:01:51.8]} 20. h3 {[%clk 0:02:18.5]} 20... Ne5 {[%clk 0:01:44.8]} 21. Nc1
{[%clk 0:02:18]} 21... Nec6 {[%clk 0:01:41.4]} 22. Nd3 {[%clk 0:02:11.8]} 22...
Qf6 {[%clk 0:01:38.4]} 23. Nxb4 {[%clk 0:02:10.1]} 23... Nxb4 {[%clk 0:01:39.3]}
24. Rd1 {[%clk 0:02:07]} 24... Rbd8 {[%clk 0:01:38.1]} 25. Nf1 {[%clk
0:02:06.5]} 25... h5 {[%clk 0:01:33.3]} 26. h4 {[%clk 0:02:03.7]} 26... Bg4
{[%clk 0:01:32.8]} 27. Rd2 {[%clk 0:02:03.7]} 27... Nc6 {[%clk 0:01:25.9]} 28.
Nh2 {[%clk 0:01:32.9]} 28... Nd4 {[%clk 0:01:13]} 29. Rd3 {[%clk 0:01:33.2]}
29... Bc8 {[%clk 0:01:06.9]} 30. Kf1 {[%clk 0:01:23.8]} 30... b5 {[%clk
0:01:02.5]} 31. axb5 {[%clk 0:01:18.5]} 31... axb5 {[%clk 0:01:03.4]} 32. Nf3
{[%clk 0:01:09.3]} 32... bxc4 {[%clk 0:00:59.1]} 33. bxc4 {[%clk 0:01:08.4]}
33... Rxe4 {[%clk 0:00:56]} 34. Ra7 {[%clk 0:01:02.3]} 34... Rde8 {[%clk
0:00:46.4]} 35. Nxd4 {[%clk 0:01:02]} 35... Rxd4 {[%clk 0:00:47.3]} 36. Rxd4
{[%clk 0:00:56.3]} 36... Qxd4 {[%clk 0:00:38.4]} 37. Bd5 {[%clk 0:00:56.3]}
37... Be6 {[%clk 0:00:38.8]} 38. Bxe6 {[%clk 0:00:52.2]} 38... Rxe6 {[%clk
0:00:39.7]} 39. Qc2 {[%clk 0:00:52]} 39... Re4 {[%clk 0:00:32.5]} 40. Ra6 {[%clk
0:00:49.6]} 40... Re6 {[%clk 0:00:26.1]} 41. Kg2 {[%clk 0:00:46.2]} 41... Rf6
{[%clk 0:00:21.9]} 42. Ra7 {[%clk 0:00:41.2]} 42... Re6 {[%clk 0:00:19.3]} 43.
Ra3 {[%clk 0:00:37.5]} 43... Qe4+ {[%clk 0:00:15.7]} 44. Qxe4 {[%clk 0:00:36.9]}
44... Rxe4 {[%clk 0:00:16.6]} 45. Rd3 {[%clk 0:00:35.1]} 45... Rxc4 {[%clk
0:00:14.9]} 46. Rxd6 {[%clk 0:00:35.2]} 46... Rc1 {[%clk 0:00:15.7]} 47. Rc6
{[%clk 0:00:35.7]} 47... c4 {[%clk 0:00:16]} 48. f3 {[%clk 0:00:32.7]} 48... c3
{[%clk 0:00:12.3]} 49. g4 {[%clk 0:00:33.1]} 49... hxg4 {[%clk 0:00:11.6]} 50.
fxg4 {[%clk 0:00:33.8]} 50... f5 {[%clk 0:00:11.7]} 51. h5 {[%clk 0:00:29.7]}
51... f4 {[%clk 0:00:07.4]} 52. Rxg6+ {[%clk 0:00:29.3]} 52... Kf7 {[%clk
0:00:05.3]} 53. Rc6 {[%clk 0:00:28.4]} 53... c2 {[%clk 0:00:05.8]} 54. h6 {[%clk
0:00:06.2]} 54... f3+ {[%clk 0:00:05.5]} 55. Kf2 {[%clk 0:00:06.6]} 55... Rh1
{[%clk 0:00:05.4]} 56. h7 {[%clk 0:00:05.9]} 56... Kg7 {[%clk 0:00:04.5]} 57.
Rc7+ {[%clk 0:00:03]} 57... Kh8 {[%clk 0:00:05.1]} 58. Kxf3 {[%clk 0:00:02.1]}
58... c1=Q {[%clk 0:00:05]} 59. Rxc1 {[%clk 0:00:02.6]} 59... Rxc1 {[%clk
0:00:05.7]} 0-1

[Event "*** Titled Tuesday Blitz"]
[Site "Chess.com"]
[Date "2020.05.26"]
[Round "7"]
[White "Spartakus1975"]
[Black "JosefineHeinemann"]
[Result "1/2-1/2"]
[WhiteElo "2683"]
[BlackElo "2525"]
[TimeControl "180+1"]
[EndTime "11:22:24 PDT"]
[Termination "Game drawn - insufficient material"]

1. e4 {[%clk 0:03:00.9]} 1... c5 {[%clk 0:02:59.3]} 2. c3 {[%clk 0:02:53.7]}
2... Nf6 {[%clk 0:02:58.6]} 3. e5 {[%clk 0:02:52.3]} 3... Nd5 {[%clk 0:02:59.1]}
4. Nf3 {[%clk 0:02:52.3]} 4... Nc6 {[%clk 0:02:58.2]} 5. d4 {[%clk 0:02:52.3]}
5... cxd4 {[%clk 0:02:57.9]} 6. cxd4 {[%clk 0:02:53]} 6... d6 {[%clk 0:02:58.4]}
7. Bc4 {[%clk 0:02:53.1]} 7... dxe5 {[%clk 0:02:58]} 8. dxe5 {[%clk 0:02:52.4]}
8... Ndb4 {[%clk 0:02:57.8]} 9. Qb3 {[%clk 0:02:50.3]} 9... e6 {[%clk
0:02:55.9]} 10. Bg5 {[%clk 0:02:50.8]} 10... Be7 {[%clk 0:02:50]} 11. Bxe7
{[%clk 0:02:46.4]} 11... Qxe7 {[%clk 0:02:50.9]} 12. a3 {[%clk 0:02:39.6]} 12...
Na6 {[%clk 0:02:50]} 13. Qe3 {[%clk 0:02:31.1]} 13... O-O {[%clk 0:02:44.6]} 14.
Nc3 {[%clk 0:02:25.2]} 14... Nc5 {[%clk 0:02:43.4]} 15. O-O {[%clk 0:02:19.5]}
15... b6 {[%clk 0:02:42.2]} 16. b4 {[%clk 0:02:18.5]} 16... Nd7 {[%clk
0:02:41.4]} 17. Rac1 {[%clk 0:02:05.3]} 17... Bb7 {[%clk 0:02:40.7]} 18. Nb5
{[%clk 0:02:05]} 18... Rfd8 {[%clk 0:02:27.4]} 19. Rfd1 {[%clk 0:01:46.2]} 19...
Ba6 {[%clk 0:02:15.2]} 20. Nc7 {[%clk 0:01:29.6]} 20... Bxc4 {[%clk 0:02:14.1]}
21. Nxa8 {[%clk 0:01:24.9]} 21... Bd5 {[%clk 0:02:10.1]} 22. Nc7 {[%clk
0:01:22.6]} 22... Bxf3 {[%clk 0:02:10.1]} 23. Qxf3 {[%clk 0:01:03.2]} 23...
Ndxe5 {[%clk 0:02:07.2]} 24. Rxd8+ {[%clk 0:01:02.5]} 24... Qxd8 {[%clk
0:02:07.3]} 25. Qc3 {[%clk 0:00:54.6]} 25... Nd4 {[%clk 0:01:53.5]} 26. Qe3
{[%clk 0:00:43.2]} 26... Ng4 {[%clk 0:01:49.1]} 27. Qe4 {[%clk 0:00:38.6]} 27...
Nf6 {[%clk 0:01:44.3]} 28. Qe5 {[%clk 0:00:30.7]} 28... Ng4 {[%clk 0:01:41.4]}
29. Qe4 {[%clk 0:00:30.1]} 29... Nf6 {[%clk 0:01:41.3]} 30. Qe1 {[%clk
0:00:29.6]} 30... Qd6 {[%clk 0:01:31.1]} 31. h3 {[%clk 0:00:28.5]} 31... h6
{[%clk 0:01:22.3]} 32. Rd1 {[%clk 0:00:27.1]} 32... Qxc7 {[%clk 0:01:20.2]} 33.
Rxd4 {[%clk 0:00:27]} 33... g6 {[%clk 0:01:20.8]} 34. Rd1 {[%clk 0:00:23.7]}
34... Kg7 {[%clk 0:01:20.3]} 35. Rc1 {[%clk 0:00:23.1]} 35... Qf4 {[%clk
0:01:20]} 36. Qc3 {[%clk 0:00:23.1]} 36... a5 {[%clk 0:01:18]} 37. bxa5 {[%clk
0:00:21.7]} 37... bxa5 {[%clk 0:01:18.9]} 38. g3 {[%clk 0:00:21.5]} 38... Qg5
{[%clk 0:01:17.7]} 39. Rb1 {[%clk 0:00:17.7]} 39... h5 {[%clk 0:01:17.4]} 40.
Rb8 {[%clk 0:00:16.3]} 40... Qd5 {[%clk 0:00:54.4]} 41. Qc8 {[%clk 0:00:14.1]}
41... Nh7 {[%clk 0:00:54.9]} 42. Qh8+ {[%clk 0:00:12.9]} 42... Kh6 {[%clk
0:00:54.9]} 43. Qc3 {[%clk 0:00:11.9]} 43... Qd1+ {[%clk 0:00:51.6]} 44. Kh2
{[%clk 0:00:11.1]} 44... g5 {[%clk 0:00:40.1]} 45. Qe3 {[%clk 0:00:09.7]} 45...
Qd6 {[%clk 0:00:33.9]} 46. Rb5 {[%clk 0:00:08.1]} 46... h4 {[%clk 0:00:32.5]}
47. Rxa5 {[%clk 0:00:06.5]} 47... hxg3+ {[%clk 0:00:32]} 48. fxg3 {[%clk
0:00:06.1]} 48... Qc7 {[%clk 0:00:29.3]} 49. Re5 {[%clk 0:00:04.6]} 49... Qc2+
{[%clk 0:00:29.1]} 50. Qe2 {[%clk 0:00:05.1]} 50... Qb3 {[%clk 0:00:28.8]} 51.
h4 {[%clk 0:00:05.2]} 51... gxh4 {[%clk 0:00:28.6]} 52. gxh4 {[%clk 0:00:04.6]}
52... Qxa3 {[%clk 0:00:28.9]} 53. Rh5+ {[%clk 0:00:04.5]} 53... Kg7 {[%clk
0:00:28.8]} 54. Qg4+ {[%clk 0:00:05]} 54... Kf8 {[%clk 0:00:28.8]} 55. Rxh7
{[%clk 0:00:04.6]} 55... Qb2+ {[%clk 0:00:29.3]} 56. Qg2 {[%clk 0:00:04.5]}
56... Qe5+ {[%clk 0:00:29.4]} 57. Qg3 {[%clk 0:00:04.6]} 57... Qe2+ {[%clk
0:00:28.8]} 58. Kg1 {[%clk 0:00:04.5]} 58... Qd1+ {[%clk 0:00:28.6]} 59. Kh2
{[%clk 0:00:04.1]} 59... Qc2+ {[%clk 0:00:28.5]} 60. Kh3 {[%clk 0:00:03.7]}
60... Qxh7 {[%clk 0:00:29]} 61. Qd6+ {[%clk 0:00:04]} 61... Kg8 {[%clk
0:00:28.3]} 62. Qd8+ {[%clk 0:00:04]} 62... Kg7 {[%clk 0:00:28.8]} 63. Qg5+
{[%clk 0:00:04.1]} 63... Qg6 {[%clk 0:00:28.9]} 64. Qe5+ {[%clk 0:00:04.4]}
64... Kh7 {[%clk 0:00:29.3]} 65. Qf4 {[%clk 0:00:03.8]} 65... Qf5+ {[%clk
0:00:29.3]} 66. Qxf5+ {[%clk 0:00:03.8]} 66... exf5 {[%clk 0:00:30.2]} 67. Kg3
{[%clk 0:00:04.5]} 67... Kh6 {[%clk 0:00:30.7]} 68. Kf4 {[%clk 0:00:05.4]} 68...
Kg6 {[%clk 0:00:31.1]} 69. Ke5 {[%clk 0:00:04.5]} 69... f6+ {[%clk 0:00:29.2]}
70. Kf4 {[%clk 0:00:04.9]} 70... Kh5 {[%clk 0:00:29.7]} 71. Kxf5 {[%clk
0:00:05.8]} 71... Kxh4 {[%clk 0:00:30.4]} 72. Kxf6 {[%clk 0:00:06.7]} 1/2-1/2

[Event "*** Titled Tuesday Blitz"]
[Site "Chess.com"]
[Date "2020.05.26"]
[Round "7"]
[White "MrMatesM"]
[Black "Omk124"]
[Result "0-1"]
[WhiteElo "2586"]
[BlackElo "2434"]
[TimeControl "180+1"]
[EndTime "11:22:26 PDT"]
[Termination "Omk124 won by resignation"]

1. d4 {[%clk 0:03:00.9]} 1... Nf6 {[%clk 0:02:59.3]} 2. Nc3 {[%clk 0:03:01]}
2... d5 {[%clk 0:02:58.6]} 3. Bf4 {[%clk 0:03:00.7]} 3... e6 {[%clk 0:02:58.3]}
4. e3 {[%clk 0:03:01]} 4... a6 {[%clk 0:02:58.8]} 5. Bd3 {[%clk 0:03:00.3]} 5...
c5 {[%clk 0:02:58.9]} 6. dxc5 {[%clk 0:03:00.1]} 6... Bxc5 {[%clk 0:02:59.8]} 7.
Nf3 {[%clk 0:03:00.8]} 7... Nc6 {[%clk 0:03:00.2]} 8. O-O {[%clk 0:03:01.4]}
8... O-O {[%clk 0:03:00.7]} 9. e4 {[%clk 0:03:02.1]} 9... dxe4 {[%clk 0:02:22]}
10. Nxe4 {[%clk 0:03:03]} 10... Be7 {[%clk 0:02:22.5]} 11. Qe2 {[%clk
0:03:00.5]} 11... b5 {[%clk 0:02:17.4]} 12. c3 {[%clk 0:02:58.8]} 12... Bb7
{[%clk 0:02:17.1]} 13. Rad1 {[%clk 0:02:58.6]} 13... Qa5 {[%clk 0:02:16.9]} 14.
Nd6 {[%clk 0:02:46.1]} 14... Bxd6 {[%clk 0:02:06.4]} 15. Bxd6 {[%clk 0:02:47]}
15... Rfd8 {[%clk 0:02:07]} 16. Bf4 {[%clk 0:02:43.8]} 16... h6 {[%clk
0:01:51.3]} 17. a3 {[%clk 0:02:33.2]} 17... Rd5 {[%clk 0:01:39]} 18. Bc2 {[%clk
0:02:27.2]} 18... Rad8 {[%clk 0:01:39.1]} 19. Bb3 {[%clk 0:02:24.5]} 19... Rxd1
{[%clk 0:01:27.3]} 20. Rxd1 {[%clk 0:02:25.4]} 20... Rxd1+ {[%clk 0:01:27.8]}
21. Qxd1 {[%clk 0:02:26.3]} 21... Qd8 {[%clk 0:01:26]} 22. Qxd8+ {[%clk
0:02:19.2]} 22... Nxd8 {[%clk 0:01:26.9]} 23. Ne5 {[%clk 0:02:15.3]} 23... Nc6
{[%clk 0:01:22.7]} 24. Nd3 {[%clk 0:02:12.8]} 24... Na5 {[%clk 0:01:22.2]} 25.
Bd1 {[%clk 0:02:09.6]} 25... Nd7 {[%clk 0:01:20.5]} 26. b3 {[%clk 0:01:58]}
26... Bd5 {[%clk 0:01:18.8]} 27. b4 {[%clk 0:01:50.5]} 27... Nc4 {[%clk
0:01:18.9]} 28. a4 {[%clk 0:01:50.2]} 28... Be4 {[%clk 0:01:18.4]} 29. axb5
{[%clk 0:01:39.3]} 29... axb5 {[%clk 0:00:58]} 30. Nc1 {[%clk 0:01:34.6]} 30...
Ndb6 {[%clk 0:00:56.8]} 31. Nb3 {[%clk 0:01:32.5]} 31... Nd5 {[%clk 0:00:56.1]}
32. Bd2 {[%clk 0:01:27.3]} 32... Nxd2 {[%clk 0:00:50.1]} 33. Nxd2 {[%clk
0:01:27.3]} 33... Nxc3 {[%clk 0:00:50.7]} 34. Nxe4 {[%clk 0:01:24.8]} 34... Nxd1
{[%clk 0:00:37.6]} 35. Nd6 {[%clk 0:01:22]} 35... Nc3 {[%clk 0:00:37.3]} 36. Kf1
{[%clk 0:01:21.1]} 36... Kf8 {[%clk 0:00:37.8]} 37. Ke1 {[%clk 0:01:18.8]} 37...
Ke7 {[%clk 0:00:38.2]} 38. Nb7 {[%clk 0:01:19.2]} 38... Nd5 {[%clk 0:00:37.7]}
39. Kd2 {[%clk 0:01:17.5]} 39... Nxb4 {[%clk 0:00:34.4]} 40. Kc3 {[%clk
0:01:17.5]} 40... Nd5+ {[%clk 0:00:34.9]} 41. Kd4 {[%clk 0:01:17.5]} 41... Kd7
{[%clk 0:00:35.1]} 42. Kc5 {[%clk 0:01:14.1]} 42... b4 {[%clk 0:00:35.7]} 43.
Na5 {[%clk 0:01:13.7]} 43... Kc7 {[%clk 0:00:34]} 44. g3 {[%clk 0:01:13.8]}
44... h5 {[%clk 0:00:30.6]} 45. Nc4 {[%clk 0:01:10.5]} 45... b3 {[%clk 0:00:29]}
46. Kd4 {[%clk 0:01:07.6]} 46... Nf6 {[%clk 0:00:24.9]} 47. h3 {[%clk
0:01:05.6]} 47... Kd8 {[%clk 0:00:19.8]} 48. Kc3 {[%clk 0:01:05.7]} 48... Ne4+
{[%clk 0:00:20.1]} 49. Kxb3 {[%clk 0:01:06.1]} 49... Nxf2 {[%clk 0:00:21]} 50.
Ne5 {[%clk 0:01:05.8]} 50... Ke7 {[%clk 0:00:21]} 51. Kc4 {[%clk 0:01:05.8]}
51... g6 {[%clk 0:00:21.5]} 52. Kd4 {[%clk 0:01:05.3]} 52... Nxh3 {[%clk
0:00:22]} 53. Ke4 {[%clk 0:01:04.7]} 53... Ng5+ {[%clk 0:00:22.6]} 54. Kf4
{[%clk 0:01:04.8]} 54... Nh7 {[%clk 0:00:23.5]} 55. Nc6+ {[%clk 0:01:04.6]}
55... Kf6 {[%clk 0:00:23.9]} 56. Nd8 {[%clk 0:01:05]} 56... g5+ {[%clk
0:00:23.9]} 57. Kf3 {[%clk 0:01:05.5]} 57... Nf8 {[%clk 0:00:24.6]} 58. Ke4
{[%clk 0:01:05]} 58... Ng6 {[%clk 0:00:25.5]} 59. Kf3 {[%clk 0:01:05.3]} 59...
h4 {[%clk 0:00:26.2]} 60. gxh4 {[%clk 0:01:05.4]} 60... Nxh4+ {[%clk 0:00:27.1]}
61. Kg4 {[%clk 0:01:06]} 61... Nf5 {[%clk 0:00:27.6]} 62. Nc6 {[%clk 0:01:05.4]}
62... Ne3+ {[%clk 0:00:27.8]} 63. Kf3 {[%clk 0:01:05.7]} 63... Nd5 {[%clk
0:00:28.3]} 64. Nd8 {[%clk 0:01:06.2]} 64... Kg6 {[%clk 0:00:27.8]} 65. Ke4
{[%clk 0:01:05.6]} 65... Ne7 {[%clk 0:00:27.1]} 66. Ke5 {[%clk 0:01:04.4]} 66...
Kg7 {[%clk 0:00:26.3]} 67. Kd6 {[%clk 0:01:02]} 67... Ng6 {[%clk 0:00:26.6]} 68.
Kc5 {[%clk 0:01:01.6]} 68... g4 {[%clk 0:00:27]} 69. Kd4 {[%clk 0:01:02]} 69...
Kf6 {[%clk 0:00:26.3]} 70. Ke4 {[%clk 0:01:02.1]} 70... Ke7 {[%clk 0:00:23.3]}
71. Nc6+ {[%clk 0:01:02.3]} 71... Kd6 {[%clk 0:00:23.2]} 72. Nd8 {[%clk
0:01:02.5]} 72... f5+ {[%clk 0:00:23.6]} 73. Ke3 {[%clk 0:01:02.7]} 73... Ke5
{[%clk 0:00:23.8]} 74. Nf7+ {[%clk 0:01:02.9]} 74... Kf6 {[%clk 0:00:24.1]} 75.
Nd8 {[%clk 0:01:03]} 75... f4+ {[%clk 0:00:24.5]} 76. Ke4 {[%clk 0:01:02.9]}
76... e5 {[%clk 0:00:25.3]} 77. Nc6 {[%clk 0:01:01.9]} 77... g3 {[%clk
0:00:25.3]} 78. Kf3 {[%clk 0:01:02]} 78... Kf5 {[%clk 0:00:24.7]} 79. Kg2 {[%clk
0:00:59.5]} 79... e4 {[%clk 0:00:25.2]} 80. Nd4+ {[%clk 0:00:59.3]} 80... Kg4
{[%clk 0:00:25.3]} 81. Ne6 {[%clk 0:00:58.4]} 81... f3+ {[%clk 0:00:26.2]} 82.
Kf1 {[%clk 0:00:58.8]} 82... e3 {[%clk 0:00:25.7]} 83. Nd4 {[%clk 0:00:58.5]}
83... e2+ {[%clk 0:00:25.8]} 84. Ke1 {[%clk 0:00:58.1]} 84... g2 {[%clk
0:00:26.4]} 85. Kf2 {[%clk 0:00:57.7]} 85... e1=Q+ {[%clk 0:00:26]} 86. Kxe1
{[%clk 0:00:58]} 86... g1=Q+ {[%clk 0:00:26.9]} 0-1